Cogmind - Beta 13 @@@ ROGUE MODE // 2024.04.26 @ 13:37:07 Player: Wesmed Result: Self-destructed Performance ------------- Evolutions (1) 500 Regions Visited (2) 400 Robots Destroyed (26) 130 Value Destroyed (500) 500 Prototype IDs (1) 20 Alien Tech Used (0) 0 Bonus (0) 0 TOTAL SCORE: 1550 Bonus ------- None Cogmind --------- Core Integrity 275/400 Matter 201/300 Energy 125/125 System Corruption 0% Temperature Cool (4) Movement Rolling (195) Ox7 Location -9/Materials Parts ------- > --- POWER (1) -------- Light Ion Engine > --- PROPULSION (2) --- Armored Wheel > --- UTILITY (4) ------ Huge Storage Unit Improved Terrain Scanner > --- WEAPON (2) ------- Light Assault Rifle Heavy Assault Rifle > --- INVENTORY (25) --- Ion Engine Armored Wheel Armored Wheel Heat Sink Sensor Array Power Shielding Power Shielding Improved EM Shotgun Improved EM Shotgun Beam Rifle Spread Laser Spread Laser Spread Laser Spread Laser Assault Rifle Assault Rifle Heavy Assault Rifle Peak State ------------ > --- POWER ------------ Light Ion Engine > --- PROPULSION ------- Armored Wheel Armored Wheel > --- UTILITY ---------- Huge Storage Unit Improved Terrain Scanner Hacking Suite > --- WEAPON ----------- Light Assault Rifle Heavy Assault Rifle > --- INVENTORY -------- Ion Engine Armored Wheel Armored Wheel Heat Sink Sensor Array Power Shielding Power Shielding Light Armor Plating Improved EM Shotgun Improved EM Shotgun Beam Rifle Spread Laser Spread Laser Spread Laser Spread Laser Assault Rifle Assault Rifle Heavy Assault Rifle [Rating: 18] Favorites ----------- Power Light Ion Engine Engine Light Ion Engine Propulsion Armored Wheel Wheel Armored Wheel Utility Improved Terrain Scanner Device Improved Terrain Scanner Storage Small Storage Unit Hackware Hacking Suite Protection Light Armor Plating Weapon Assault Rifle Energy Gun Improved EM Shotgun Ballistic Gun Assault Rifle Build | -11 -10 -9 ------- Run | Yrd Mat Mat Slots Evolved 2 | . . 2 Power . | . . . Propulsion . | . . . Utility 2 | . . 2 Weapon . | . . . Parts Attached 23 | 9 7 7 Power 3 | . 2 1 Engine 3 | . 2 1 Core . | . . . Reactor . | . . . Propulsion 6 | 4 2 . Treads . | . . . Leg . | . . . Wheel 6 | 4 2 . Hover . | . . . Flight . | . . . Utility 7 | 3 1 3 Device 3 | 2 . 1 Storage 2 | 1 1 . Processor . | . . . Hackware 1 | . . 1 Protection 1 | . . 1 Artifact . | . . . Weapon 7 | 2 2 3 Energy Gun 1 | . 1 . Energy Cannon . | . . . Ballistic Gun 6 | 2 1 3 Ballistic Cannon . | . . . Launcher . | . . . Special Weapon . | . . . Impact Weapon . | . . . Slashing Weapon . | . . . Piercing Weapon . | . . . Special Melee Weapon . | . . . Unidentified Prototypes 1 | . 1 . Parts Lost 4 | . . 4 Power 1 | . . 1 Propulsion 1 | . . 1 Utility 2 | . . 2 Weapon . | . . . Highest Loss Streak 3 | . . 3 To Critical Strikes . | . . . Average Slot Usage (%) 96 | . 98 92 Engine 12 | . 12 10 Wheel 25 | . 28 20 Device 14 | . 14 15 Storage 12 | . 14 11 Hackware 3 | . . 10 Ballistic Gun 25 | . 27 22 Naked Turns . | . . . Heaviest Build 91 | 10 88 91 Greatest Support 24 | 20 24 24 Greatest Overweight (x) 7 | . 3 7 Average Overweight (x) 1 | . . 3 Largest Inventory Capacity 25 | 8 25 25 Average Capacity 16 | 7 13 25 Most Carried 18 | 8 13 18 Average Carried 10 | 4 9 16 Final Capacity 25 | 8 25 25 Final Carried 17 | 7 13 17 Class Distribution -------------------- 74% | Mutant 25% | Scavenger-Mutant Dominant Class ---------------- Mutant | -10/Materials Scavenger-Mutant | -9/Materials Resources | -11 -10 -9 ----------- Run | Yrd Mat Mat Matter Collected 705 | 357 199 149 Remotely . | . . . Salvage Created 690 | 104 312 274 Parts 55 | 10 21 24 Haulers Intercepted . | . . . Recyclers Shooed . | . . . Parts Field Recycled . | . . . Retrieved Matter . | . . . Parts Self-Destructed . | . . . Prevented . | . . . Kills | -11 -10 -9 ------- Run | Yrd Mat Mat Combat Hostiles Destroyed 16 | . 5 11 Guns 16 | . 5 11 Classes Destroyed 8 | 2 3 3 Worker 1 | 1 . . Tunneler 5 | 5 . . Operator 1 | . 1 . Watcher 3 | . 3 . Swarmer 7 | . . 7 Grunt 7 | . 5 2 Duelist 1 | . . 1 Sentry 1 | . . 1 Best Kill Streak 5 | 5 3 4 Combat Bots Only 4 | . 3 4 Max Kills in Single Turn 1 | 1 1 1 Gunslinging . | . . . Exploded . | . . . Melee . | . . . Uniques/NPCs Destroyed . | . . . Combat | -11 -10 -9 -------- Run | Yrd Mat Mat Hostile Shots Fired 91 | . 25 66 Missed 20 | . 4 16 Damage Taken 869 | . 242 627 Core 207 | . 82 125 Absorbed by Shields . | . . . Core Remaining (%) 83 | 100 67 . Volleys Fired 74 | 14 27 33 Largest 2 | 2 2 2 Hottest 43 | 40 40 43 Shots Fired 148 | 28 54 66 Gun 148 | 28 54 66 Cannon . | . . . Launcher . | . . . Special . | . . . Kinetic 148 | 28 54 66 Thermal . | . . . Explosive . | . . . Electromagnetic . | . . . Robot Hit Streak 8 | 7 8 7 Robot Miss Streak 3 | 3 3 3 Penetration Max . | . . . Secondary Targets 1 | . 1 . Max Gunslinging Chain 1 | . 1 . Shots Hit Robots 93 | 16 36 41 Core Hits 37 | 6 14 17 Critical Kills . | . . . Critical Parts Destroyed 1 | . 1 . Critical Strikes 1 | . 1 . Destroy 1 | . 1 . Melee Attacks . | . . . Impact . | . . . Slashing . | . . . Piercing . | . . . Sneak Attacks . | . . . Combat Hostiles . | . . . Follow-up Attacks . | . . . Damage Inflicted 1148 | 207 469 472 Guns 1148 | 207 469 472 Cannons . | . . . Explosions . | . . . Melee . | . . . Ramming . | . . . Kinetic 1148 | 207 469 472 Thermal . | . . . Explosive . | . . . Electromagnetic . | . . . Impact . | . . . Slashing . | . . . Piercing . | . . . Highest Corruption . | . . . Average Corruption . | . . . Corruption Purged . | . . . Corruption Blocked . | . . . Overload Shots . | . . . Overflow Damage . | . . . Projectiles . | . . . Explosions . | . . . Melee . | . . . Knockbacks . | . . . Impact . | . . . Kinetic . | . . . Secondary . | . . . Self-Inflicted Damage . | . . . Shots . | . . . Rammed . | . . . Targets Rammed . | . . . Kicked . | . . . Crushed . | . . . Highest Temperature 16 | 1 2 16 Average Temperature 4 | 1 2 5 Received Heat Transfer 321 | . 132 189 Siege Activations . | . . . Robots Corrupted . | . . . Combat Hostiles . | . . . Parts Fried . | . . . Impact Corruptions . | . . . Robots Melted . | . . . Combat Hostiles . | . . . Parts Melted . | . . . Heat Transferred . | . . . Parts Sabotaged . | . . . Parts Stolen . | . . . Parts Stripped . | . . . Power Chain Reactions . | . . . Alert | -11 -10 -9 ------- Run | Yrd Mat Mat Peak Influence 314 | 30 314 310 Initial 63 | . 19 63 Average 158 | 14 154 225 Maximum Alert Level 1 | . 1 1 Low Security (%) 64 | 100 78 26 Level 1 35 | . 21 73 Level 2 . | . . . Level 3 . | . . . Level 4 . | . . . Level 5 . | . . . High Security . | . . . Max Security . | . . . Squads Dispatched 4 | . 3 1 Investigation 2 | . 2 . Extermination . | . . . Reinforcement 2 | . 1 1 Assault . | . . . Garrison . | . . . Intercept . | . . . Searches Triggered . | . . . Construction Impeded . | . . . Haulers Reinforced . | . . . Active Scanning Responses . | . . . Cargo Convoy Interrupts . | . . . Stealth | -11 -10 -9 --------- Run | Yrd Mat Mat Distress Signals 1 | . 1 . Communications Jammed . | . . . Distress Signals . | . . . Times Spotted 30 | . 16 14 Peak Tracking Total 6 | . 4 6 Tactical Retreats 3 | . 3 . Traps | -11 -10 -9 ------- Run | Yrd Mat Mat Traps Triggered 2 | . 2 . Indirectly . | . . . Trap Hack Attempts . | . . . Triggered . | . . . Disarmed . | . . . Reprogrammed . | . . . Reused . | . . . Traps Extracted . | . . . Installed . | . . . Triggered . | . . . Machines | -11 -10 -9 ---------- Run | Yrd Mat Mat Machines Disabled . | . . . Max in Single Turn . | . . . Machines Repaired . | . . . Machines Dismantled . | . . . Machines Sabotaged . | . . . Overloaded Fab Kills . | . . . Hacking | -11 -10 -9 --------- Run | Yrd Mat Mat Machines Accessed 5 | . 5 . Terminals 5 | . 5 . Fabricators . | . . . Repair Stations . | . . . Recycling Units . | . . . Scanalyzers . | . . . Garrison Access . | . . . Total Hacks 13 | . 13 . Successful 6 | . 6 . Failed 7 | . 7 . Catastrophic 2 | . 2 . Database Lockouts . | . . . Manual 13 | . 13 . Terminals 13 | . 13 . Fabricators . | . . . Repair Stations . | . . . Recycling Units . | . . . Scanalyzers . | . . . Garrison Access . | . . . Terminal Hacks 2 | . 2 . Part Schematic 2 | . 2 . Fabricator Hacks . | . . . Repair Station Hacks . | . . . Recycling Unit Hacks . | . . . Scanalyzer . | . . . Garrison Access Hacks . | . . . Unauthorized Hacks 4 | . 4 . Terminals 4 | . 4 . Assimilate 1 | . 1 . Botnet 3 | . 3 . Fabricators . | . . . Repair Stations . | . . . Recycling Units . | . . . Scanalyzers . | . . . Garrison Access . | . . . Data Cores Recovered 1 | . 1 . Used 1 | . 1 . Hacking Detections 3 | . 3 . Full Trace Events . | . . . Feedback Events . | . . . Feedback Blocked . | . . . Robot Schematics Acquired . | . . . Robots Built . | . . . Authchips . | . . . Time . | . . . Total Robot Build Rating . | . . . Part Schematics Acquired 2 | . 2 . Parts Built . | . . . Authchips . | . . . Time . | . . . Total Part Build Rating . | . . . Parts Repaired . | . . . Time . | . . . Parts Recycled . | . . . Recycled Matter . | . . . Retrieved Matter . | . . . Retrieved Components . | . . . Parts Scanalyzed . | . . . Part Schematics Acquired . | . . . Parts Damaged . | . . . Bothacking | -11 -10 -9 ------------ Run | Yrd Mat Mat Used RIF Installer . | . . . Robots Hacked . | . . . Non-combat . | . . . Combat . | . . . Robot Hacks Applied . | . . . Relay Couplers Released . | . . . Fabnet Peak Effective % . | . . . Robots Rewired . | . . . Allies Hacked . | . . . Hacks Repelled . | . . . Allies | -11 -10 -9 -------- Run | Yrd Mat Mat Total Allies . | . . . Largest Group . | . . . Highest-Rated Group . | . . . Highest-Rated Ally . | . . . Total Orders . | . . . Ally Attacks . | . . . Total Damage . | . . . Kills . | . . . Allies Corrupted . | . . . Allies Melted . | . . . Intel | -11 -10 -9 ------- Run | Yrd Mat Mat Robot Analysis Total . | . . . Derelict Logs Recovered . | . . . Drone Launches . | . . . Drone Recoveries . | . . . Exploration | -11 -10 -9 ------------- Run | Yrd Mat Mat Turns Passed 1157 | 163 619 375 Spaces Moved 770 | 128 505 137 Core 7 | 7 . . Treads . | . . . Legs . | . . . Wheels 763 | 121 505 137 Hover . | . . . Flight . | . . . Fastest Speed 50 | 50 80 135 Average Speed 103 | 78 100 138 Slowest Speed 195 | 80 135 195 Overloaded Moves . | . . . Propulsion Burnouts . | . . . Robots Hopped . | . . . Cave-ins Triggered . | . . . Exploration Rate (%) 27 | 5 65 12 Regions Visited 2 Branch Regions . Pre-discovered Areas . | . . . Known Exits Taken . | . . . Unknown Exits Taken 2 | 1 1 . Scrap Searched . | . . . Spaces Dug . | . . . Terrain Destroyed . | . . . Melee . | . . . Projectile . | . . . AOE . | . . . Terrain Rammed . | . . . Walls Destroyed . | . . . Machines Disabled . | . . . Actions | -11 -10 -9 --------- Run | Yrd Mat Mat Total 988 | 159 571 258 Wait 85 | . 7 78 Move 768 | 127 504 137 Hop . | . . . Pick Up 24 | 7 14 3 Fast Attach 8 | 5 2 1 Attach 4 | 1 1 2 Detach . | . . . Swap 11 | 3 4 4 Drop 14 | 2 12 . Fire 74 | 14 27 33 Melee . | . . . Ram . | . . . Kick . | . . . Crush . | . . . Escape Stasis . | . . . Rewire . | . . . Trap . | . . . Miscellaneous . | . . . Route ------- -11/Scrapyard -10/Materials (discovered 4 exits: [*Mat x2] / [*Min x2]) -9/Materials History --------- Turn | Location | Event 7 | -11/Scrapyard | Discovered new exit (range 16) 164 | -11/Scrapyard | Entered Materials 315 | -10/Materials | Build established: Mutant 461 | -10/Materials | Discovered new exit (range 16) 554 | -10/Materials | Discovered new exit (range 12) 568 | -10/Materials | Discovered new exit (range 9) 724 | -10/Materials | Discovered new exit (range 4) 783 | -10/Materials | Entered another Materials area 783 | -9/Materials | Evolved 2 slots: Utility x2 1158 | -9/Materials | Self-destructed Last Messages --------------- 00867_ Acquired Lgt. Armor Plating. 00869_ Acquired 12 matter. 00875_ S-10 Pest destroyed. 00892_ Acquired 53 matter. 00893_ Acquired 15 matter. 00896_ Acquired Heat Sink. 00999_ K-01 Serf collects debris. 01069_ K-01 Serf cleans the Fusion Modulator. 01110_ G-34 Mercenary destroyed. 01116_ K-01 Serf collects debris. 01119_ Arm. Wheel destroyed. 01121_ K-01 Serf collects debris. 01121_ G-34 Mercenary destroyed. 01124_ K-01 Serf collects debris. 01134_ Hacking Suite destroyed. 01134_ K-01 Serf collects debris. 01141_ Lgt. Armor Plating destroyed. 01143_ U-05 Engineer builds a Door. 01147_ L-31 Rogue destroyed. 01151_ K-01 Serf collects debris. Map ----- +----------------------------------------------------+ | ??????##########????????#????????????????????????? | | ??????# #?????????????????????????????????? | | ?##???# !! #?????????????????????????????????? | | ??##??# !! #?????????????????????????????????? | | ###???# ! ] #?????????????????????????????????? | | #???# #?#???????????????????????????????? | | #?### """ #?????#???????????????????????????? | | #???# """ #??#??#???????????????????????????? | | #???# """ #??????#?#??#?????????????????????? | | #??## ##????????#???????????????????????? | | = #?#?#####/#######??????????????????????????????? | | ######### #?#??????#???#?????????????????????? | | = ##???????? ????????????????????????? | | ######????? ??" ???????????????????? | | # ?? #?????????????????????????? | | #####+### # ""??"#?????????????????????????? | | ## ##* """????????? ??????????????????? | | """ = ## ## """"??? ???????????????????????? | | """ ## ## """""???"?????????? ???????????? | | """ ## ## """""# ????????????????????????? | | ## ## """""#?????????? ?#??#?????????? | | """ ## ## """""#? ???? #?????????????????? | | """ ## ## % # ???? ?#?????????????????? | | """ # ###+############## a #?????????????? | | ?? # u %= ! g #?? ?????????? | | ?#?###### k /%@ #?????????????? | | ??#?????# g = #?????????????? | | ????????# ###+##################?????????????? | | ???? ? ?######## ??????????????????????????????? | | ???? ???????#??#"""? ????????????#???????????????? | | ??????????#????#"""??????#???#???????????????????? | | ??????????????##"""??????????#???????????????????? | | ?????"?????????#"""?????? ? ???????#?????????????? | | ??????? #??????????????? ????????????????????????? | | ????????????#??????????#?????????????????????????? | | ???????#?#????????"??????????????????????????????? | | ?????????????#???????????????????????????????????? | | ??????????????????? ?????????????????????????????? | | ????????????????"????????????????????????????????? | | ?????????????????????????????????????????????????? | | ?????????????????????????????????????????????????? | | ?????????????????????????????????????????????????? | | ?????????????????????????????????????????????????? | | ?????????????????????????????????????????????????? | | ?????????????????????????????????????????????????? | | ?????????????????????????????????????????????????? | | ?????????????????????????????????????????????????? | | ?????????????????????????????????????????????????? | | ?????????????????????????????????????????????????? | | ?????????????????????????????????????????????????? | +----------------------------------------------------+ Best States ------------- Heat Dissipation 28 Energy Generation 10 Energy Capacity 125 Matter Stores 300 Matter Capacity 300 Sight Range 16 Robot Scan Range 14 Terrain Scan Range 16 Terrain Scan Density 10 Armor Coverage 150 Evasion (%) 44 Offensive Hacking 10 Item Schematics ----------------- Huge Storage Unit | -10/Materials | Hacked Utility Shielding | -10/Materials | Hacked Robot Schematics ------------------ None Fabricated ------------ Nothing Alien Tech Used ----------------- None Achievements -------------- None Challenges ------------ None Game ------ Seed SignalAutogunChronowheel Manual? 0 Play Time 00:13:57 Cumulative 23.9 hours Start 2024.04.26 @ 13:14:05 End 2024.04.26 @ 13:37:07 Sessions 1 Manual Loads 0 Difficulty Rogue Special Mode None Game No. 31 Rogue 23 Adventurer 8 Explorer 0 Win Type - Total 0 Types 0/0/0/0/0/0/0/0/0 Lore% 26 Gallery% 32 Achievement% 25 Wizard Run 0 Options --------- Layout 1 ASCII 0 Keyboard 0 Movement Arrows Keybinds 0 Fullscreen 1 Font 16/SmallcapsGlow Map View 55x38 Zoom Use 0% Tactical HUD 1 Map Filters NONE Filters NONE Steam 1 RUN: 6d996d30-96f0-4451-937b-ab8a86739986